[Event "WSTCC-65 2024"]
[Site "Krakow"]
[Date "2024.07.05"]
[Round "4.19"]
[White "Pietrzak, Janusz"]
[Black "Baum, Bernd"]
[Result "0-1"]
[ECO "B56"]
[WhiteElo "1919"]
[BlackElo "2203"]
[Annotator "RC"]
[PlyCount "238"]
[EventDate "2024.07.01"]
[EventType "team-tourn"]
[EventCountry "POL"]
[SourceTitle "playchess.com"]
[Source "ChessBase"]
[SourceQuality "1"]
[TimeControl "40/5400+30:1800+30"]

1. e4 {[%emt 0:00:12]} c5 {[%emt 0:00:04]} 2. Nf3 {[%emt 0:00:12]} Nc6 {[%emt 0:00:09]} 3. d4 {[%emt 0:00:48]} cxd4 {[%emt 0:00:02]} 4. Nxd4 {[%emt 0:00:05]} Nf6 {[%emt 0:00:21]} 5. Nc3 {[%emt 0:00:13]} d6 {[%emt 0:00:23]} 6. Be3 {[%emt 0:01:18]} Ng4 {[%emt 0:00:42]} 7. Bc1 {[%emt 0:00:12]} Qb6 {[%emt 0:02:02]} 8. Be3 {[%emt 0:13:51]} Nxe3 {[%emt 0:02:33]} 9. fxe3 {[%emt 0:00:06]} e6 {[%emt 0:08:15]} 10. Na4 {[%emt 0:10:25]} Qd8 {[%emt 0:08:36]} 11. Bd3 {[%emt 0:03:12]} Bd7 {[%emt 0:05:41]} 12. Nc3 {[%emt 0:03:26]} Qh4+ {[%emt 0:08:14]} 13. g3 {[%emt 0:00:45]} Qh6 {[%emt 0:00:25]} 14. Qf3 {[%emt 0:01:17]} Be7 {[%emt 0:01:09]} 15. Nxc6 {[%emt 0:05:17]} bxc6 {[%emt 0:05:47]} 16. O-O {[%emt 0:00:21]} O-O {[%emt 0:00:46]} 17. Rae1 {[%emt 0:07:46]} Rab8 {[%emt 0:04:41]} 18. b3 {[%emt 0:03:26]} Bf6 {[%emt 0:01:26]} 19. Nd1 {[%emt 0:05:35]} Be5 {[%emt 0:01:10]} 20. Nf2 {[%emt 0:03:27]} Bc3 {[%emt 0:04:10]} 21. Rd1 {[%emt 0:00:32]} e5 {[%emt 0:00:32]} 22. Bc4 {[%emt 0:02:07]} Qg6 {[%emt 0:08:48]} 23. Rd3 {[%emt 0:04:29]} Ba5 {[%emt 0:06:14]} 24. Rfd1 {[%emt 0:04:13]} Bc7 {[%emt 0:00:02]} 25. Kg2 {[%emt 0:01:02]} Kh8 {[%emt 0:01:40]} 26. R3d2 {[%emt 0:02:50]} f5 {[%emt 0:13:13]} 27. Bd3 {[%emt 0:03:50]} fxe4 {[%emt 0:04:01]} 28. Qxe4 {[%emt 0:01:05]} Qh5 {[%emt 0:01:02]} 29. Qh4 {[%emt 0:05:33]} Qxh4 {[%emt 0:03:16]} 30. gxh4 {[%emt 0:00:04]} Ba5 {[%emt 0:01:28]} 31. Re2 {[%emt 0:00:31]} d5 {[%emt 0:00:25]} 32. c4 {[%emt 0:00:21]} Be8 {[%emt 0:01:36]} 33. Rc2 {[%emt 0:03:26]} Bb6 {[%emt 0:01:20]} 34. c5 {[%emt 0:03:31]} Bd8 {[%emt 0:00:10]} 35. e4 {[%emt 0:00:18]} Bxh4 {[%emt 0:01:52]} 36. Ng4 {[%emt 0:04:04]} Rf4 {[%emt 0:01:42]} 37. Nxe5 {[%emt 0:01:12]} dxe4 {[%emt 0:01:02]} 38. Bc4 {[%emt 0:00:20]} Bf6 {[%emt 0:00:57]} 39. Nf7+ {[%emt 0:00:17]} Bxf7 {[%emt 0:01:02]} 40. Bxf7 {[%emt 0:00:02]} Rf8 {[%emt 0:00:42]} 41. Bc4 {[%emt 0:32:24]} Be5 {[%emt 0:05:44]} 42. Rf1 {[%emt 0:00:00]} g5 {[%emt 0:03:33]} 43. b4 {[%emt 0:00:00]} R8f6 {[%emt 0:04:47]} 44. a4 {[%emt 0:00:00]} Rh6 {[%emt 0:02:28]} 45. Rxf4 {[%emt 0:00:00]} gxf4 {[%emt 0:00:21]} 46. b5 {[%emt 0:00:00]} f3+ {[%emt 0:00:16]} 47. Kh1 {[%emt 0:00:00]} e3 {[%emt 0:00:07]} 48. b6 {[%emt 0:00:00]} axb6 {[%emt 0:03:43]} 49. cxb6 {[%emt 0:00:00]} f2 {[%emt 0:04:02]} 50. Kg2 {[%emt 0:00:00]} Rxh2+ {[%emt 0:00:15]} 51. Kf1 {[%emt 0:00:00]} Rh1+ {[%emt 0:00:29]} 52. Kg2 {[%emt 0:00:00]} Rg1+ {[%emt 0:02:11]} 53. Kf3 {[%emt 0:00:00]} f1=Q+ {[%emt 0:01:51]} 54. Bxf1 {[%emt 0:00:00]} Rxf1+ {[%emt 0:00:01]} 55. Kxe3 {[%emt 0:00:00]} Ra1 {[%emt 0:00:47]} 56. Rxc6 {[%emt 0:00:00]} Rxa4 {[%emt 0:00:16]} 57. Re6 {[%emt 0:00:00]} Bh2 {[%emt 0:00:44]} 58. b7 {[%emt 0:00:00]} Rb4 {[%emt 0:00:19]} 59. Re7 {[%emt 0:00:00]} h6 {[%emt 0:01:46]} 60. Kf3 {[%emt 0:00:00]} Kg8 {[%emt 0:00:28]} 61. Re6 {[%emt 0:02:32]} Kg7 {[%emt 0:00:57]} 62. Re2 {[%emt 0:02:19]} Bb8 {[%emt 0:00:32]} 63. Re7+ {[%emt 0:01:03]} Kf6 {[%emt 0:00:25]} 64. Rh7 {[%emt 0:00:23]} Kg6 {[%emt 0:00:47]} 65. Re7 {[%emt 0:00:12]} Rb3+ {[%emt 0:00:39]} 66. Kg2 {[%emt 0:00:18]} Bf4 {[%emt 0:01:13]} 67. Re4 {[%emt 0:01:13]} Bc7 {[%emt 0:01:53]} 68. Rc4 {[%emt 0:01:18]} Rxb7 {[%emt 0:00:19]} 69. Rc6+ {[%emt 0:00:05]} Kg5 {[%emt 0:00:45]} 70. Rc2 {[%emt 0:01:00]} Bf4 {[%emt 0:00:29]} 71. Kh1 {[%emt 0:03:14]} Rb1+ {[%emt 0:00:26]} 72. Kg2 {[%emt 0:00:03]} Kg4 {[%emt 0:00:09]} 73. Ra2 {[%emt 0:01:18]} h5 {[%emt 0:00:09]} 74. Ra8 {[%emt 0:00:30]} h4 {[%emt 0:01:03]} 75. Rg8+ {[%emt 0:00:07]} Bg5 {[%emt 0:00:06]} 76. Kh2 {[%emt 0:00:56]} Rb2+ {[%emt 0:02:19]} 77. Kg1 {[%emt 0:00:36]} Kf4 {[%emt 0:01:03]} 78. Kh1 {[%emt 0:00:52]} Bf6 {[%emt 0:02:45]} 79. Rg2 {[%emt 0:01:42]} Rb6 {[%emt 0:00:39]} 80. Rf2+ {[%emt 0:04:07]} Kg3 {[%emt 0:00:08]} 81. Rg2+ {[%emt 0:00:10]} Kf3 {[%emt 0:00:03]} 82. Rg1 {[%emt 0:00:28]} Bd4 {[%emt 0:00:30]} 83. Rf1+ {[%emt 0:00:26]} Kg3 {[%emt 0:00:27]} 84. Rd1 {[%emt 0:00:49]} Be3 {[%emt 0:00:18]} 85. Re1 {[%emt 0:00:32]} Rb3 {[%emt 0:00:55]} 86. Rf1 {[%emt 0:01:03]} Bf2 {[%emt 0:00:48]} 87. Rd1 {[%emt 0:00:26]} Kf3 {[%emt 0:00:20]} 88. Ra1 {[%emt 0:00:25]} Bd4 {[%emt 0:00:41]} 89. Rd1 {[%emt 0:00:32]} Bb6 {[%emt 0:00:29]} 90. Ra1 {[%emt 0:00:35]} Bf2 {[%emt 0:00:47]} 91. Rc1 {[%emt 0:00:26]} Ke2 {[%emt 0:00:36]} 92. Rc2+ {[%emt 0:01:14]} Kf1 {[%emt 0:00:23]} 93. Rc1+ {[%emt 0:00:16]} Be1 {[%emt 0:00:08]} 94. Kh2 {[%emt 0:00:22]} Rd3 {[%emt 0:00:19]} 95. Ra1 {[%emt 0:00:09]} Kf2 {[%emt 0:00:27]} 96. Ra2+ {[%emt 0:01:22]} Bd2 {[%emt 0:00:24]} 97. Rb2 {[%emt 0:00:11]} Kf3 {[%emt 0:00:38]} 98. Kh3 {[%emt 0:01:19]} Bc3 {[%emt 0:00:45]} 99. Rc2 {[%emt 0:00:24]} Bf6 {[%emt 0:00:14]} 100. Rc1 {[%emt 0:00:25]} Kf2+ {[%emt 0:00:23]} 101. Kg4 {[%emt 0:00:23]} Rg3+ {[%emt 0:00:26]} 102. Kf5 {[%emt 0:00:15]} Bd8 {[%emt 0:00:39]} 103. Rc2+ {[%emt 0:00:31]} Kg1 {[%emt 0:00:15]} 104. Kf4 {[%emt 0:00:08]} Rg2 {[%emt 0:00:32]} 105. Rc3 {[%emt 0:00:16]} Kh2 {[%emt 0:00:20]} 106. Rc8 {[%emt 0:00:16]} Bg5+ {[%emt 0:00:20]} 107. Kf3 {[%emt 0:00:34]} h3 {[%emt 0:00:07]} 108. Rh8 {[%emt 0:00:16]} Rg3+ {[%emt 0:00:14]} 109. Kf2 {[%emt 0:00:17]} Be3+ {[%emt 0:00:03]} 110. Kf1 {[%emt 0:00:12]} Bd4 {[%emt 0:00:36]} 111. Rd8 {[%emt 0:01:06]} Rg1+ {[%emt 0:00:27]} 112. Ke2 {[%emt 0:00:06]} Be5 {[%emt 0:00:31]} 113. Rd5 {[%emt 0:00:28]} Rg5 {[%emt 0:00:22]} 114. Kf3 {[%emt 0:00:15]} Rg3+ {[%emt 0:00:50]} 115. Kf2 {[%emt 0:00:11]} Bc7 {[%emt 0:00:36]} 116. Rb5 {[%emt 0:00:29]} Rg7 {[%emt 0:01:24]} 117. Kf1 {[%emt 0:00:41]} Rf7+ {[%emt 0:00:14]} 118. Ke2 {[%emt 0:00:06]} Kg2 {[%emt 0:00:12]} 119. Rg5+ {[%emt 0:00:27]} Bg3 {[%emt 0:00:06]} 0-1

[Event "WSTCC-65 2024"]
[Site "Krakow"]
[Date "2024.07.05"]
[Round "4.20"]
[White "Glaessl, Matthias"]
[Black "Kot, Jerzy"]
[Result "1/2-1/2"]
[ECO "B76"]
[WhiteElo "2196"]
[BlackElo "2019"]
[Annotator "RC"]
[PlyCount "82"]
[EventDate "2024.07.01"]
[EventType "team-tourn"]
[EventCountry "POL"]
[SourceTitle "playchess.com"]
[Source "ChessBase"]
[SourceQuality "1"]
[TimeControl "40/5400+30:1800+30"]

1. e4 {[%emt 0:00:03]} c5 {[%emt 0:00:08]} 2. Nf3 {[%emt 0:00:06]} d6 {[%emt 0:00:06]} 3. d4 {[%emt 0:00:08]} cxd4 {[%emt 0:00:06]} 4. Nxd4 {[%emt 0:00:04]} Nf6 {[%emt 0:00:06]} 5. Nc3 {[%emt 0:00:09]} g6 {[%emt 0:00:06]} 6. Be3 {[%emt 0:00:54]} Bg7 {[%emt 0:00:13]} 7. f3 {[%emt 0:01:05]} Nc6 {[%emt 0:00:20]} 8. Qd2 {[%emt 0:02:25]} O-O {[%emt 0:01:33]} 9. O-O-O {[%emt 0:06:31]} Nxd4 {[%emt 0:01:30]} 10. Bxd4 {[%emt 0:00:08]} Be6 {[%emt 0:00:07]} 11. Kb1 {[%emt 0:02:19]} a6 {[%emt 0:00:44]} 12. Nd5 {[%emt 0:07:40]} Bxd5 {[%emt 0:01:42]} 13. exd5 {[%emt 0:00:05]} b5 {[%emt 0:03:07]} 14. h4 {[%emt 0:03:17]} Qc7 {[%emt 0:03:55]} 15. h5 {[%emt 0:08:02]} Qb7 {[%emt 0:02:09]} 16. Bxf6 {[%emt 0:03:34]} Bxf6 {[%emt 0:01:50]} 17. g3 {[%emt 0:05:44]} Rfc8 {[%emt 0:01:05]} 18. f4 {[%emt 0:07:07]} Rc5 {[%emt 0:00:52]} 19. hxg6 {[%emt 0:00:38]} hxg6 {[%emt 0:01:02]} 20. Bg2 {[%emt 0:00:22]} Rac8 {[%emt 0:00:22]} 21. Be4 {[%emt 0:00:46]} Bg7 {[%emt 0:02:40]} 22. f5 {[%emt 0:01:59]} e6 {[%emt 0:02:37]} 23. fxe6 {[%emt 0:01:47]} f5 {[%emt 0:00:13]} 24. Qh2 {[%emt 0:05:56]} Bf6 {[%emt 0:01:47]} 25. Bf3 {[%emt 0:00:33]} Qg7 {[%emt 0:01:57]} 26. c3 {[%emt 0:03:09]} a5 {[%emt 0:00:50]} 27. Rde1 {[%emt 0:02:14]} R8c7 {[%emt 0:01:57]} 28. Qh6 {[%emt 0:01:29]} b4 {[%emt 0:02:13]} 29. Qxg7+ {[%emt 0:00:24]} Kxg7 {[%emt 0:00:26]} 30. cxb4 {[%emt 0:00:51]} axb4 {[%emt 0:01:25]} 31. Rc1 {[%emt 0:00:11]} g5 {[%emt 0:02:50]} 32. Rxc5 {[%emt 0:00:15]} Rxc5 {[%emt 0:00:09]} 33. Re1 {[%emt 0:02:57]} Kf8 {[%emt 0:01:38]} 34. g4 {[%emt 0:03:28]} fxg4 {[%emt 0:00:45]} 35. Bg2 {[%emt 0:00:11]} Be5 {[%emt 0:00:26]} 36. Rc1 {[%emt 0:00:17]} Ke7 {[%emt 0:01:35]} 37. Rxc5 {[%emt 0:00:25]} dxc5 {[%emt 0:00:11]} 38. b3 {[%emt 0:00:02]} Kf6 {[%emt 0:01:11]} 39. Kc2 {[%emt 0:00:56]} Bd6 {[%emt 0:00:11]} 40. Kd3 {[%emt 0:00:10]} Ke5 {[%emt 0:00:38]} 41. Ke3 {[%emt 0:30:24]} Be7 {[%emt 0:30:29]} 1/2-1/2

[Event "WSTCC-65 2024"]
[Site "Krakow"]
[Date "2024.07.05"]
[Round "4.20"]
[White "Shaughnessy, Elizabeth"]
[Black "Beier, Thomas"]
[Result "0-1"]
[ECO "A45"]
[WhiteElo "1642"]
[BlackElo "1538"]
[Annotator "NA RC"]
[PlyCount "64"]
[EventDate "2024.07.01"]
[EventType "team-tourn"]
[EventCountry "POL"]
[SourceTitle "playchess.com"]
[Source "ChessBase"]
[SourceQuality "1"]
[TimeControl "40/5400+30:1800+30"]

1. d4 {[%emt 0:00:18]} Nf6 {[%emt 0:00:14]} 2. Bf4 {[%emt 0:00:18]} c5 {[%emt 0:03:09]} 3. e3 {[%emt 0:00:17]} cxd4 {[%emt 0:01:04]} 4. exd4 {[%emt 0:02:05]} e6 {[%emt 0:00:55]} 5. c3 {[%emt 0:02:15]} b6 {[%emt 0:03:09]} 6. h3 {[%emt 0:00:18]} Bb7 {[%emt 0:00:17]} 7. Nf3 {[%emt 0:02:08]} Be7 {[%emt 0:01:20]} 8. Bd3 {[%emt 0:00:41]} O-O {[%emt 0:07:25]} 9. O-O {[%emt 0:00:04]} Re8 {[%emt 0:01:15]} 10. Nbd2 {[%emt 0:03:02]} d5 {[%emt 0:01:28]} 11. Ne5 {[%emt 0:06:17]} Nbd7 {[%emt 0:05:43]} 12. Ndf3 {[%emt 0:03:34]} Nxe5 {[%emt 0:06:52]} 13. Nxe5 {[%emt 0:00:17]} h6 {[%emt 0:12:48]} 14. Qf3 {[%emt 0:12:16]} g5 {[%emt 0:17:22]} 15. Bd2 {[%emt 0:09:21]} Rf8 {[%emt 0:04:44]} 16. Qg3 {[%emt 0:08:24]} Ne4 {[%emt 0:02:34]} 17. Bxe4 {[%emt 0:01:04]} dxe4 {[%emt 0:00:10]} 18. f3 {[%emt 0:21:15]} Bd6 {[%emt 0:12:04]} 19. fxe4 {[%emt 0:02:35]} Bxe4 {[%emt 0:03:52]} 20. Qg4 {[%emt 0:08:03]} Bf5 {[%emt 0:02:32]} 21. Qh5 {[%emt 0:00:29]} Bxe5 {[%emt 0:04:37]} 22. Qxh6 {[%emt 0:06:54]} Bg7 {[%emt 0:01:34]} 23. Qh5 {[%emt 0:03:06]} Bxd4+ {[%emt 0:01:21]} 24. Kh1 {[%emt 0:03:52]} Bf6 {[%emt 0:00:13]} 25. Rad1 {[%emt 0:01:49]} Qe7 {[%emt 0:01:38]} 26. Rde1 {[%emt 0:00:25]} Bg6 {[%emt 0:01:59]} 27. Qf3 {[%emt 0:00:41]} Kg7 {[%emt 0:00:27]} 28. Qe3 {[%emt 0:01:28]} Rad8 {[%emt 0:00:29]} 29. Qf2 {[%emt 0:00:18]} Bd3 {[%emt 0:00:50]} 30. Rg1 {[%emt 0:00:09]} Bf5 {[%emt 0:01:19]} 31. g4 {[%emt 0:00:19]} Qb7+ {[%emt 0:00:10]} 32. Rg2 {[%emt 0:00:15]} Be4 {[%emt 0:00:16]} 0-1

[Event "WSTCC-65 2024"]
[Site "Krakow"]
[Date "2024.07.05"]
[Round "4.21"]
[White "Janocha, Wieslaw"]
[Black "Rewitz, Jan"]
[Result "1-0"]
[ECO "B01"]
[WhiteElo "2167"]
[BlackElo "2089"]
[Annotator "RC"]
[PlyCount "31"]
[EventDate "2024.07.01"]
[EventType "team-tourn"]
[EventCountry "POL"]
[SourceTitle "playchess.com"]
[Source "ChessBase"]
[SourceQuality "1"]
[TimeControl "40/5400+30:1800+30"]

1. e4 {[%emt 0:00:04]} d5 {[%emt 0:00:13]} 2. exd5 {[%emt 0:00:15]} Nf6 {[%emt 0:00:09]} 3. d4 {[%emt 0:01:30]} Nxd5 {[%emt 0:00:15]} 4. Nf3 {[%emt 0:00:17]} g6 {[%emt 0:00:19]} 5. c4 {[%emt 0:04:35]} Nb6 {[%emt 0:02:27]} 6. c5 {[%emt 0:00:15]} Nd5 {[%emt 0:00:09]} 7. Bc4 {[%emt 0:00:07]} Bg7 {[%emt 0:00:30]} 8. Nc3 {[%emt 0:00:09]} c6 {[%emt 0:00:09]} 9. O-O {[%emt 0:00:08]} O-O {[%emt 0:00:19]} 10. Re1 {[%emt 0:00:07]} h6 {[%emt 0:21:03]} 11. Ne5 {[%emt 0:26:49]} b6 {[%emt 0:11:40]} 12. Nxc6 {[%emt 0:12:51]} Nxc3 {[%emt 0:03:30]} 13. Nxd8 {[%emt 0:02:13]} Nxd1 {[%emt 0:02:48]} 14. Nxf7 {[%emt 0:06:23]} Nxf2 {[%emt 0:19:09]} 15. Rxe7 {[%emt 0:10:13]} Bxd4 {[%emt 0:07:19]} 16. Ng5+ {[%emt 0:00:08]} 1-0

[Event "WSTCC-65 2024"]
[Site "Krakow"]
[Date "2024.07.05"]
[Round "4.21"]
[White "Idesis, Yaacov"]
[Black "Noone, Joe"]
[Result "1/2-1/2"]
[ECO "A36"]
[WhiteElo "1879"]
[BlackElo "1906"]
[Annotator "NA RC"]
[PlyCount "32"]
[EventDate "2024.07.01"]
[EventType "team-tourn"]
[EventCountry "POL"]
[SourceTitle "playchess.com"]
[Source "ChessBase"]
[SourceQuality "1"]
[TimeControl "40/5400+30:1800+30"]

1. c4 {[%emt 0:00:08]} c5 {[%emt 0:00:10]} 2. Nc3 {[%emt 0:00:11]} Nc6 {[%emt 0:00:49]} 3. g3 {[%emt 0:00:18]} g6 {[%emt 0:00:28]} 4. Bg2 {[%emt 0:00:09]} Bg7 {[%emt 0:00:07]} 5. e3 {[%emt 0:00:07]} e5 {[%emt 0:07:14]} 6. Nge2 {[%emt 0:00:17]} Nge7 {[%emt 0:00:32]} 7. O-O {[%emt 0:00:11]} d6 {[%emt 0:03:16]} 8. b3 {[%emt 0:03:51]} Be6 {[%emt 0:05:40]} 9. Bb2 {[%emt 0:03:19]} d5 {[%emt 0:03:16]} 10. cxd5 {[%emt 0:00:47]} Nxd5 {[%emt 0:00:38]} 11. Nxd5 {[%emt 0:02:07]} Bxd5 {[%emt 0:00:08]} 12. Bxd5 {[%emt 0:06:17]} Qxd5 {[%emt 0:00:02]} 13. d4 {[%emt 0:11:28]} cxd4 {[%emt 0:24:21]} 14. exd4 {[%emt 0:00:16]} O-O-O {[%emt 0:02:39]} 15. dxe5 {[%emt 0:05:34]} Bxe5 {[%emt 0:05:11]} 16. Qxd5 {[%emt 0:04:35]} Rxd5 {[%emt 0:00:33]} 1/2-1/2

[Event "WSTCC-65 2024"]
[Site "Krakow"]
[Date "2024.07.05"]
[Round "4.22"]
[White "Cordes, Steffen"]
[Black "Swierczewski, Marek"]
[Result "1/2-1/2"]
[ECO "B23"]
[WhiteElo "1989"]
[BlackElo "2059"]
[Annotator "NA RC"]
[PlyCount "33"]
[EventDate "2024.07.01"]
[EventType "team-tourn"]
[EventCountry "POL"]
[SourceTitle "playchess.com"]
[Source "ChessBase"]
[SourceQuality "1"]
[TimeControl "40/5400+30:1800+30"]

1. e4 {[%emt 0:00:04]} c5 {[%emt 0:00:02]} 2. Nc3 {[%emt 0:00:06]} e6 {[%emt 0:00:10]} 3. g3 {[%emt 0:01:03]} Nc6 {[%emt 0:00:09]} 4. Bg2 {[%emt 0:00:06]} g6 {[%emt 0:00:21]} 5. d3 {[%emt 0:00:23]} Bg7 {[%emt 0:00:12]} 6. f4 {[%emt 0:00:09]} d6 {[%emt 0:03:34]} 7. Nf3 {[%emt 0:00:25]} Nge7 {[%emt 0:00:08]} 8. O-O {[%emt 0:00:07]} O-O {[%emt 0:00:16]} 9. Be3 {[%emt 0:00:26]} Nd4 {[%emt 0:00:23]} 10. Qd2 {[%emt 0:01:54]} Rb8 {[%emt 0:07:54]} 11. Nd1 {[%emt 0:03:29]} b5 {[%emt 0:03:45]} 12. c3 {[%emt 0:00:57]} Nxf3+ {[%emt 0:00:06]} 13. Bxf3 {[%emt 0:00:23]} b4 {[%emt 0:02:49]} 14. Nf2 {[%emt 0:07:14]} bxc3 {[%emt 0:04:58]} 15. bxc3 {[%emt 0:00:18]} Qa5 {[%emt 0:00:08]} 16. Rfc1 {[%emt 0:01:50]} Qa3 {[%emt 0:19:38]} 17. Nd1 {[%emt 0:02:45]} 1/2-1/2

[Event "WSTCC-65 2024"]
[Site "Krakow"]
[Date "2024.07.05"]
[Round "4.22"]
[White "Harding, Tim D"]
[Black "Reem, Meir"]
[Result "0-1"]
[ECO "A15"]
[WhiteElo "1945"]
[BlackElo "1866"]
[Annotator "NA RC"]
[PlyCount "74"]
[EventDate "2024.07.01"]
[EventType "team-tourn"]
[EventCountry "POL"]
[SourceTitle "playchess.com"]
[Source "ChessBase"]
[SourceQuality "1"]
[TimeControl "40/5400+30:1800+30"]

1. c4 {[%emt 0:00:10]} Nf6 {[%emt 0:00:07]} 2. Nf3 {[%emt 0:00:13]} d6 {[%emt 0:00:10]} 3. g3 {[%emt 0:00:47]} g6 {[%emt 0:00:20]} 4. Bg2 {[%emt 0:00:02]} Bg7 {[%emt 0:00:16]} 5. Nc3 {[%emt 0:00:26]} c6 {[%emt 0:01:11]} 6. O-O {[%emt 0:00:49]} O-O {[%emt 0:00:08]} 7. d3 {[%emt 0:02:30]} e5 {[%emt 0:01:04]} 8. Rb1 {[%emt 0:01:22]} h6 {[%emt 0:08:13]} 9. Bd2 {[%emt 0:03:14]} a5 {[%emt 0:02:25]} 10. a3 {[%emt 0:00:34]} Na6 {[%emt 0:05:36]} 11. b4 {[%emt 0:00:42]} axb4 {[%emt 0:00:24]} 12. axb4 {[%emt 0:00:11]} Bd7 {[%emt 0:06:49]} 13. Ne1 {[%emt 0:08:31]} Qc8 {[%emt 0:01:40]} 14. Nc2 {[%emt 0:11:38]} Bh3 {[%emt 0:02:13]} 15. e4 {[%emt 0:01:14]} Bxg2 {[%emt 0:00:55]} 16. Kxg2 {[%emt 0:00:03]} Nh5 {[%emt 0:11:37]} 17. Ne3 {[%emt 0:08:41]} Kh7 {[%emt 0:02:35]} 18. h3 {[%emt 0:05:10]} Nc7 {[%emt 0:00:32]} 19. Qg4 {[%emt 0:06:06]} Ne6 {[%emt 0:07:59]} 20. Kh2 {[%emt 0:11:14]} Nf6 {[%emt 0:03:24]} 21. Qf3 {[%emt 0:03:25]} Nd4 {[%emt 0:04:25]} 22. Qg2 {[%emt 0:00:14]} Nh5 {[%emt 0:00:27]} 23. b5 {[%emt 0:06:29]} f5 {[%emt 0:02:13]} 24. exf5 {[%emt 0:01:58]} gxf5 {[%emt 0:00:18]} 25. bxc6 {[%emt 0:00:25]} bxc6 {[%emt 0:00:01]} 26. f4 {[%emt 0:04:32]} Rg8 {[%emt 0:04:49]} 27. Ne2 {[%emt 0:06:46]} exf4 {[%emt 0:04:07]} 28. Nxf4 {[%emt 0:04:25]} Nxf4 {[%emt 0:03:11]} 29. gxf4 {[%emt 0:01:41]} Ra2 {[%emt 0:07:35]} 30. Rf2 {[%emt 0:01:28]} Bf6 {[%emt 0:00:26]} 31. Qf1 {[%emt 0:00:36]} Bh4 {[%emt 0:00:38]} 32. Rg2 {[%emt 0:00:24]} Rxg2+ {[%emt 0:00:12]} 33. Nxg2 {[%emt 0:00:46]} Rxd2 {[%emt 0:00:21]} 34. Kh1 {[%emt 0:00:31]} Bf6 {[%emt 0:01:34]} 35. Qe1 {[%emt 0:00:51]} Re2 {[%emt 0:00:27]} 36. Qa5 {[%emt 0:00:09]} Qe6 {[%emt 0:07:19]} 37. Rb7+ Kg6 {[%emt 0:00:15]} 0-1

[Event "WSTCC-65 2024"]
[Site "Krakow"]
[Date "2024.07.05"]
[Round "4.23"]
[White "Czajkowski, Ryszard"]
[Black "Oehlerich, Per"]
[Result "1/2-1/2"]
[ECO "D45"]
[WhiteElo "1975"]
[BlackElo "1959"]
[Annotator "NA RC"]
[PlyCount "40"]
[EventDate "2024.07.01"]
[EventType "team-tourn"]
[EventCountry "POL"]
[SourceTitle "playchess.com"]
[Source "ChessBase"]
[SourceQuality "1"]
[TimeControl "40/5400+30:1800+30"]

1. d4 {[%emt 0:00:02]} d5 {[%emt 0:00:31]} 2. c4 {[%emt 0:00:07]} c6 {[%emt 0:00:05]} 3. Nc3 {[%emt 0:00:23]} Nf6 {[%emt 0:00:19]} 4. Nf3 {[%emt 0:00:19]} e6 {[%emt 0:00:20]} 5. e3 {[%emt 0:00:23]} Be7 {[%emt 0:01:18]} 6. Bd3 {[%emt 0:00:40]} dxc4 {[%emt 0:02:19]} 7. Bxc4 {[%emt 0:00:03]} Nbd7 {[%emt 0:01:46]} 8. O-O {[%emt 0:02:35]} O-O {[%emt 0:00:48]} 9. e4 {[%emt 0:07:31]} a6 {[%emt 0:02:42]} 10. e5 {[%emt 0:02:35]} Nd5 {[%emt 0:01:42]} 11. Ne4 {[%emt 0:04:33]} b5 {[%emt 0:05:31]} 12. Bd3 {[%emt 0:00:59]} c5 {[%emt 0:09:05]} 13. Nxc5 {[%emt 0:08:14]} Nxc5 {[%emt 0:11:17]} 14. dxc5 {[%emt 0:00:03]} Qc7 {[%emt 0:06:59]} 15. Qe2 {[%emt 0:06:05]} Bb7 {[%emt 0:07:20]} 16. Bd2 {[%emt 0:14:54]} Qxc5 {[%emt 0:07:52]} 17. Qe4 {[%emt 0:08:33]} g6 {[%emt 0:01:44]} 18. Qg4 {[%emt 0:04:39]} Nb4 {[%emt 0:02:00]} 19. Be4 {[%emt 0:00:51]} Bxe4 {[%emt 0:01:45]} 20. Qxe4 {[%emt 0:00:29]} Qd5 1/2-1/2

[Event "WSTCC-65 2024"]
[Site "Krakow"]
[Date "2024.07.05"]
[Round "4.23"]
[White "Gorjaltsan, Eduard"]
[Black "Matthews, Gabriel"]
[Result "0-1"]
[ECO "E30"]
[WhiteElo "1884"]
[BlackElo "1917"]
[Annotator "NA RC"]
[PlyCount "70"]
[EventDate "2024.07.01"]
[EventType "team-tourn"]
[EventCountry "POL"]
[SourceTitle "playchess.com"]
[Source "ChessBase"]
[SourceQuality "1"]
[TimeControl "40/5400+30:1800+30"]

1. d4 {[%emt 0:00:05]} Nf6 {[%emt 0:00:15]} 2. c4 {[%emt 0:00:13]} e6 {[%emt 0:00:13]} 3. Nc3 {[%emt 0:00:12]} Bb4 {[%emt 0:00:58]} 4. Bg5 {[%emt 0:00:36]} c5 {[%emt 0:01:20]} 5. Qb3 {[%emt 0:02:28]} Nc6 {[%emt 0:03:15]} 6. a3 {[%emt 0:02:12]} Nxd4 {[%emt 0:04:21]} 7. Qa4 {[%emt 0:00:32]} Bxc3+ {[%emt 0:02:32]} 8. bxc3 {[%emt 0:00:03]} Nc6 {[%emt 0:01:47]} 9. Nf3 {[%emt 0:00:46]} Qc7 {[%emt 0:05:13]} 10. Bxf6 {[%emt 0:00:24]} gxf6 {[%emt 0:00:28]} 11. e3 {[%emt 0:01:46]} d6 {[%emt 0:03:55]} 12. Rd1 {[%emt 0:01:42]} Bd7 {[%emt 0:02:24]} 13. Qc2 {[%emt 0:01:10]} O-O-O {[%emt 0:02:40]} 14. Be2 {[%emt 0:00:32]} Ne5 {[%emt 0:05:01]} 15. Nd2 {[%emt 0:00:37]} Bc6 {[%emt 0:04:22]} 16. O-O {[%emt 0:03:50]} h5 {[%emt 0:05:15]} 17. h3 {[%emt 0:02:26]} f5 {[%emt 0:01:59]} 18. f4 {[%emt 0:00:55]} Nd7 {[%emt 0:13:12]} 19. Nf3 {[%emt 0:02:30]} Nf6 {[%emt 0:01:49]} 20. Kh2 {[%emt 0:03:05]} Ne4 {[%emt 0:04:04]} 21. a4 {[%emt 0:04:25]} h4 {[%emt 0:03:32]} 22. Ra1 {[%emt 0:00:29]} Rdg8 {[%emt 0:01:23]} 23. Bd3 {[%emt 0:00:50]} f6 {[%emt 0:03:42]} 24. Ra2 {[%emt 0:02:54]} Rg3 {[%emt 0:03:55]} 25. a5 {[%emt 0:03:35]} Qg7 {[%emt 0:01:59]} 26. Bxe4 {[%emt 0:00:48]} fxe4 {[%emt 0:04:50]} 27. Ne1 {[%emt 0:00:33]} Rxe3 {[%emt 0:01:56]} 28. Qd2 {[%emt 0:00:54]} Rxh3+ {[%emt 0:03:18]} 29. gxh3 {[%emt 0:01:10]} Qg3+ {[%emt 0:00:21]} 30. Kh1 {[%emt 0:00:43]} e3+ {[%emt 0:00:18]} 31. Qg2 {[%emt 0:00:26]} Bxg2+ {[%emt 0:00:57]} 32. Rxg2 {[%emt 0:00:07]} Qxh3+ {[%emt 0:00:31]} 33. Kg1 {[%emt 0:00:03]} Qf5 {[%emt 0:01:29]} 34. Kh2 {[%emt 0:01:16]} d5 {[%emt 0:02:44]} 35. Nc2 {[%emt 0:00:48]} Qe4 0-1

[Event "WSTCC-65 2024"]
[Site "Krakow"]
[Date "2024.07.05"]
[Round "4.24"]
[White "Andresen, Hans Jorn"]
[Black "Krupa, Krzysztof"]
[Result "1/2-1/2"]
[ECO "A01"]
[WhiteElo "1953"]
[BlackElo "1947"]
[Annotator "NA RC"]
[PlyCount "26"]
[EventDate "2024.07.01"]
[EventType "team-tourn"]
[EventCountry "POL"]
[SourceTitle "playchess.com"]
[Source "ChessBase"]
[SourceQuality "1"]
[TimeControl "40/5400+30:1800+30"]

1. b3 {[%emt 0:00:11]} e5 {[%emt 0:01:51]} 2. Bb2 {[%emt 0:00:17]} Nc6 {[%emt 0:00:53]} 3. e3 {[%emt 0:00:31]} Nf6 {[%emt 0:01:41]} 4. Bb5 {[%emt 0:01:04]} d6 {[%emt 0:15:26]} 5. Ne2 {[%emt 0:04:51]} Bd7 {[%emt 0:07:46]} 6. O-O {[%emt 0:02:13]} Be7 {[%emt 0:05:23]} 7. c4 {[%emt 0:02:39]} O-O {[%emt 0:10:56]} 8. Nbc3 {[%emt 0:02:21]} a6 {[%emt 0:01:50]} 9. Bxc6 {[%emt 0:00:26]} bxc6 {[%emt 0:01:44]} 10. f4 {[%emt 0:00:41]} e4 {[%emt 0:06:17]} 11. Ng3 {[%emt 0:02:27]} d5 {[%emt 0:01:10]} 12. d3 {[%emt 0:09:32]} exd3 {[%emt 0:05:25]} 13. Qxd3 {[%emt 0:01:09]} Bc5 {[%emt 0:01:11]} 1/2-1/2